bitfinex/quotes_BTCUSD_20250414
["timestamp","ask_amount","ask_price","bid_price","bid_amount"]
[1744611057604,0.0008444,84336.0,84335.0,1.2768561]
[1744611060292,0.0008444,84336.0,84335.0,1.2768161]
[1744611060928,4e-07,84336.0,84335.0,1.3262161]
[1744611061329,2e-07,84349.0,84342.0,0.54424385]
[1744611061528,0.00013943,84349.0,84348.0,0.66607239]
[1744611061927,0.00013943,84349.0,84348.0,0.67161736]
[1744611062140,0.00013943,84349.0,84348.0,0.81989736]
[1744611062536,0.00013943,84349.0,84348.0,0.8273097]
[1744611062853,0.00013943,84349.0,84348.0,0.6870297]
[1744611063053,0.00013943,84349.0,84348.0,0.6790297]
[1744611063462,0.00013943,84349.0,84348.0,0.6840297]
[1744611063832,0.00013943,84349.0,84348.0,0.6880297]
[1744611073089,0.00013943,84349.0,84348.0,0.6840297]
[1744611073287,0.00013943,84349.0,84348.0,0.7366297]
[1744611073646,0.00013943,84349.0,84348.0,0.7316297]
[1744611073849,0.00013943,84349.0,84348.0,0.6790297]
[1744611074046,0.00013943,84349.0,84348.0,0.6840297]
[1744611075197,4.3e-07,84349.0,84348.0,0.7386297]
[1744611075367,4.3e-07,84349.0,84348.0,0.7266297]
[1744611075768,4.3e-07,84349.0,84348.0,0.7356297]
[1744611076176,4.3e-07,84349.0,84348.0,0.7316297]
[1744611076378,4.3e-07,84349.0,84348.0,0.7416297]
[1744611076576,4.3e-07,84349.0,84348.0,1.1523297]
[1744611077555,4.3e-07,84349.0,84348.0,1.1573297]
[1744611077747,8.3e-07,84357.0,84356.0,0.54521285]
[1744611077945,8.4e-07,84357.0,84356.0,1.13445439]
[1744611078248,8.4e-07,84357.0,84356.0,1.18748972]
[1744611078603,8.4e-07,84357.0,84356.0,1.19490206]
[1744611079007,8.4e-07,84357.0,84356.0,1.19890206]
[1744611079231,8.4e-07,84357.0,84356.0,1.15642615]
[1744611079434,8.4e-07,84357.0,84356.0,1.25538615]
[1744611080227,8.4e-07,84357.0,84356.0,1.25638615]
[1744611081988,8.4e-07,84357.0,84356.0,1.30238615]
[1744611082983,8.4e-07,84357.0,84356.0,1.28938615]
[1744611083188,8.4e-07,84357.0,84356.0,1.29838615]
[1744611083366,8.4e-07,84357.0,84356.0,1.30438615]
[1744611083570,4e-08,84365.0,84364.0,0.54519485]
[1744611083886,4e-08,84365.0,84364.0,0.69830455]
[1744611084294,4e-08,84365.0,84364.0,0.70571689]
[1744611084613,4e-08,84365.0,84364.0,0.67992206]
[1744611084826,6.4e-07,84369.0,84368.0,0.35454085]
[1744611084996,6.4e-07,84369.0,84368.0,0.47538239]
[1744611085196,6.4e-07,84369.0,84368.0,0.48186115]
[1744611085420,6.4e-07,84369.0,84368.0,0.90797349]
[1744611085763,8.4e-07,84370.0,84369.0,0.54518385]
[1744611085986,8.4e-07,84370.0,84369.0,0.68132132]
[1744611086390,8.4e-07,84370.0,84369.0,0.72732132]
[1744611086685,8.4e-07,84370.0,84369.0,0.73473366]
[1744611086889,8.4e-07,84370.0,84369.0,0.74073366]
[1744611088121,8.4e-07,84370.0,84369.0,0.74473366]
[1744611088435,0.0008442,84387.0,84369.0,0.74473366]
[1744611088436,8.4e-07,84379.0,84378.0,0.54416285]
[1744611088638,0.00013996,84379.0,84378.0,1.23657695]
[1744611089113,0.00013996,84379.0,84378.0,0.7355161]
[1744611089114,0.04513996,84379.0,84378.0,0.7355161]
[1744611089314,0.04513996,84379.0,84378.0,0.74292844]
[1744611089706,0.04513996,84379.0,84378.0,0.75092844]
[1744611090514,0.04513996,84379.0,84378.0,0.74292844]
[1744611090917,0.04513996,84379.0,84378.0,0.74792844]
[1744611091114,0.04513996,84379.0,84378.0,0.75292844]
[1744611091377,0.09263996,84379.0,84378.0,0.6320869]
[1744611091565,0.09263996,84379.0,84378.0,0.6270869]
[1744611092003,0.09263996,84379.0,84378.0,0.6310869]
[1744611092482,0.09263996,84379.0,84378.0,0.6270869]
[1744611092681,0.09263996,84379.0,84378.0,0.6240869]
[1744611092888,0.09263996,84379.0,84378.0,0.6270869]
[1744611093539,0.09263996,84379.0,84378.0,0.6280869]
[1744611094034,0.09263996,84379.0,84378.0,0.6260869]
[1744611094284,0.09263996,84379.0,84378.0,0.2083869]
[1744611095053,0.09263996,84379.0,84378.0,0.0187649]
[1744611096656,0.09263996,84379.0,84378.0,0.2083869]
[1744611103188,0.09263996,84379.0,84378.0,0.0187649]
[1744611104187,0.09263996,84379.0,84378.0,0.2083869]
[1744611109143,0.09263996,84379.0,84378.0,0.20097456]
[1744611121124,0.09263996,84379.0,84378.0,0.01135256]
[1744611122033,0.09263996,84379.0,84378.0,0.01035256]
[1744611122265,0.09263996,84379.0,84378.0,0.00635256]
[1744611127259,0.09500919,84379.0,84378.0,0.00635256]
[1744611127494,0.10686019,84379.0,84375.0,0.011851]
[1744611127704,0.10686019,84379.0,84376.0,0.011851]
[1744611127875,0.10686019,84379.0,84377.0,0.00590858]
[1744611128220,0.189622,84378.0,84377.0,0.00590858]
[1744611128444,0.011851,84375.0,84372.0,0.011852]
[1744611128722,0.011851,84375.0,84373.0,0.0059321]
[1744611128723,0.00236923,84374.0,84373.0,0.0059321]
[1744611129144,0.19200023,84374.0,84373.0,0.0059321]
[1744611129542,0.011853,84362.0,84357.0,0.011854]
[1744611129744,0.011853,84362.0,84359.0,0.00594145]
[1744611129745,0.201511,84362.0,84359.0,0.00594145]
[1744611130125,0.011853,84362.0,84359.0,0.00594145]
[1744611130323,0.011853,84362.0,84359.0,0.01779545]
[1744611130763,0.011853,84363.0,84360.0,0.011853]
[1744611131146,0.011853,84363.0,84361.0,0.00594327]
[1744611132744,0.011853,84363.0,84361.0,0.00894327]
[1744611133489,0.189658,84362.0,84361.0,0.00894327]
[1744611133689,0.011853,84363.0,84361.0,0.00894327]
[1744611134410,0.011853,84363.0,84361.0,0.01094327]
[1744611134623,0.011852,84367.0,84362.0,0.189658]
[1744611134840,0.011852,84368.0,84363.0,0.19560551]
[1744611135091,0.011852,84368.0,84364.0,0.011853]
[1744611135387,0.201499,84367.0,84365.0,0.00599003]
[1744611135683,0.201499,84367.0,84366.0,0.00740615]
[1744611135888,0.201499,84367.0,84366.0,0.01339464]
[1744611136418,0.189596,84390.0,84371.0,0.189638]
[1744611136611,0.0494,84374.0,84371.0,0.20149]
[1744611136813,0.0494,84374.0,84372.0,0.01339721]
[1744611137321,0.011851,84377.0,84374.0,0.011851]
[1744611137516,0.01199096,84379.0,84376.0,0.011851]
[1744611137727,0.01199096,84379.0,84377.0,0.00599836]
[1744611138324,0.00013996,84379.0,84376.0,0.201477]
[1744611138525,0.00013996,84379.0,84377.0,0.00599836]
[1744611139536,0.00013996,84379.0,84378.0,0.0074051]
[1744611139734,0.00013996,84379.0,84378.0,0.01340527]
[1744611139938,0.00013996,84379.0,84378.0,0.00600017]
[1744611140318,0.00013996,84379.0,84378.0,0.12921182]
[1744611140497,0.00013996,84379.0,84378.0,0.13661679]
[1744611140696,0.00013996,84379.0,84378.0,0.13424681]
[1744611142777,0.00013996,84379.0,84378.0,0.13661667]
[1744611144017,0.00013996,84379.0,84378.0,0.13424681]
[1744611144420,0.00013996,84379.0,84378.0,0.01340527]
[1744611145246,0.00013996,84379.0,84378.0,0.00600017]
[1744611146684,0.00013996,84379.0,84378.0,0.00879517]
[1744611159770,0.00013996,84379.0,84378.0,0.05429517]
[1744611159922,0.002,84409.0,84390.0,0.235095]
[1744611160114,0.00213909,84409.0,84408.0,0.189555]
[1744611160310,0.00213909,84409.0,84408.0,0.19535589]
[1744611164818,0.00213909,84409.0,84408.0,0.31619743]
[1744611176919,0.00213909,84409.0,84408.0,0.37703828]
[1744611178139,6.9e-07,84413.0,84412.0,0.189546]
[1744611178352,0.0008442,84434.0,84428.0,0.18951]
[1744611178610,0.0008442,84434.0,84428.0,0.32489239]
[1744611179005,0.0008442,84434.0,84428.0,0.37681878]
[1744611179227,0.0008442,84434.0,84428.0,0.38421791]
[1744611179615,0.0008442,84434.0,84428.0,0.33791791]
[1744611180123,0.0008442,84434.0,84428.0,0.3407311]
[1744611180849,0.0008442,84434.0,84428.0,0.32619025]
[1744611181132,0.0008442,84434.0,84428.0,0.32335821]
[1744611182199,0.0008442,84434.0,84428.0,0.33789906]
[1744611182400,0.0008442,84434.0,84428.0,0.38419906]
[1744611182599,0.0008442,84434.0,84428.0,0.43209906]
[1744611184697,0.0008442,84434.0,84428.0,0.38419906]
[1744611185099,0.0008442,84434.0,84428.0,0.38619906]
[1744611186631,0.0008442,84434.0,84428.0,0.33989906]
[1744611187753,0.0008442,84434.0,84428.0,0.32535821]
[1744611187960,0.0483442,84434.0,84428.0,0.13584821]
[1744611188210,0.011843,84431.0,84428.0,0.01500667]
[1744611188339,0.189506,84430.0,84428.0,0.00760754]
[1744611188545,0.011843,84431.0,84428.0,0.002]
[1744611188985,0.011843,84432.0,84428.0,0.002]
[1744611189187,0.0601872,84434.0,84428.0,0.002]
[1744611189367,0.0483442,84434.0,84428.0,0.002]
[1744611189562,0.0483442,84434.0,84428.0,0.001]
[1744611189945,0.0483442,84434.0,84427.0,0.189512]
[1744611190150,0.0483442,84434.0,84428.0,0.00665495]
[1744611190352,0.0483442,84434.0,84427.0,0.189512]
[1744611190696,0.0483442,84434.0,84428.0,0.01405517]
[1744611191051,0.0483442,84434.0,84428.0,0.00740022]
[1744611193931,0.011843,84432.0,84428.0,0.00740022]
[1744611194104,0.0483442,84434.0,84428.0,0.00740022]
[1744611194407,0.011843,84433.0,84428.0,0.00740022]
[1744611195257,0.0483442,84434.0,84428.0,0.00740022]
[1744611195461,0.0601872,84434.0,84428.0,0.00740022]
[1744611195882,0.011844,84425.0,84419.0,0.189529]
[1744611196025,0.011844,84425.0,84422.0,0.011845]
[1744611196227,0.011844,84427.0,84422.0,0.011845]
[1744611196728,0.011844,84424.0,84417.0,0.189533]
[1744611196994,0.0468,84421.0,84420.0,0.001]
[1744611197371,0.0468,84421.0,84420.0,0.00939052]
[1744611197568,0.0468,84421.0,84420.0,0.00839052]
[1744611197746,0.0468,84421.0,84416.0,0.011846]
[1744611197747,0.0468,84421.0,84418.0,0.011845]
[1744611197952,0.058645,84421.0,84419.0,0.00842577]
[1744611198151,0.0475,84420.0,84419.0,0.00842577]
[1744611198454,0.18953,84419.0,84414.0,0.011846]
[1744611198652,0.18953,84419.0,84416.0,0.011846]
[1744611199035,0.059345,84420.0,84416.0,0.011846]
[1744611199235,0.204585,84420.0,84417.0,0.00842035]
[1744611199739,0.189533,84418.0,84417.0,0.00842035]
[1744611199929,0.011846,84413.0,84410.0,0.011846]
[1744611200054,0.011846,84413.0,84411.0,0.00845696]
[1744611200254,0.19274,84420.0,84417.0,0.011845]
[1744611200473,0.0475,84420.0,84417.0,0.20138]
[1744611200689,0.0475,84420.0,84419.0,0.18953]
[1744611200895,0.0475,84420.0,84419.0,0.19809646]
[1744611201849,0.0495,84420.0,84419.0,0.19809646]
[1744611202040,0.0475,84420.0,84419.0,0.00856646]
[1744611202384,0.061345,84420.0,84417.0,0.011845]
[1744611202584,0.061345,84420.0,84419.0,0.00858351]
[1744611202786,0.061345,84420.0,84417.0,0.011845]
[1744611202988,0.201376,84419.0,84418.0,0.0085808]
[1744611203234,0.061345,84420.0,84416.0,0.011846]
[1744611203617,0.059345,84420.0,84417.0,0.00858296]
[1744611204417,0.0475,84420.0,84417.0,0.02042796]
[1744611205024,0.0485,84420.0,84417.0,0.02042796]
[1744611206014,0.0485,84420.0,84418.0,0.189533]
[1744611206412,0.001,84420.0,84418.0,0.189533]
[1744611206616,0.001,84420.0,84419.0,0.12941636]
[1744611207482,0.001,84420.0,84419.0,0.13681744]
[1744611207882,2.0476,84429.0,84426.0,0.011844]
[1744611209339,0.011844,84428.0,84424.0,0.201362]
[1744611211333,0.012844,84428.0,84424.0,0.201362]
[1744611211491,0.011844,84427.0,84424.0,0.011844]
[1744611211836,0.012844,84428.0,84407.0,0.011847]
[1744611211837,0.011845,84417.0,84407.0,0.011847]
[1744611212077,0.011845,84417.0,84413.0,0.011846]
[1744611212225,0.011845,84419.0,84414.0,0.011846]
[1744611212430,0.011845,84419.0,84415.0,0.011846]
[1744611212811,0.011845,84419.0,84416.0,0.00855101]
[1744611213748,0.011845,84419.0,84416.0,0.02039701]
[1744611213951,0.057045,84422.0,84417.0,0.011845]
[1744611214270,0.011845,84421.0,84418.0,0.02039466]
[1744611215468,0.18953,84420.0,84418.0,0.00854966]
[1744611215668,0.201373,84421.0,84418.0,0.00854966]
[1744611215965,0.201373,84421.0,84419.0,0.00855696]
[1744611216165,0.201373,84421.0,84417.0,0.011845]
[1744611216392,0.201373,84421.0,84418.0,0.00855696]
[1744611217951,0.011845,84421.0,84418.0,0.02040196]
[1744611224427,0.011845,84422.0,84419.0,0.011845]
[1744611224825,0.011845,84422.0,84420.0,0.00855967]
[1744611226948,0.189526,84421.0,84420.0,0.00855967]
[1744611227301,0.201371,84421.0,84420.0,0.00856745]
[1744611227599,0.201371,84421.0,84418.0,0.011845]
[1744611227948,0.201371,84421.0,84420.0,0.00856745]
[1744611228146,0.201371,84421.0,84419.0,0.00856277]
[1744611228486,0.201371,84421.0,84417.0,0.011845]
[1744611228897,0.011845,84420.0,84418.0,0.00857091]
[1744611235218,0.011845,84421.0,84418.0,0.02041591]
[1744611244607,0.012845,84421.0,84418.0,0.02041591]
[1744611246985,0.012845,84421.0,84418.0,0.00857091]
[1744611247392,0.189528,84420.0,84418.0,0.00857091]
[1744611247602,0.201388,84414.0,84409.0,0.011847]
[1744611247807,0.201388,84414.0,84404.0,0.20141]
[1744611247808,0.0951,84412.0,84403.0,0.011847]
[1744611248011,0.284648,84412.0,84407.0,0.011847]
[1744611248385,0.189551,84410.0,84403.0,0.01198609]
[1744611249026,0.011847,84409.0,84404.0,0.20141]
[1744611249252,0.011847,84409.0,84406.0,0.011847]
[1744611249392,0.011847,84409.0,84407.0,0.002]
[1744611250019,0.011847,84409.0,84406.0,0.011847]
[1744611250818,0.011847,84409.0,84407.0,0.002]
[1744611251025,0.011847,84409.0,84406.0,0.011847]
[1744611251544,0.011847,84409.0,84406.0,0.012847]
[1744611252448,0.14516,84408.0,84406.0,0.012847]
[1744611252645,0.14516,84408.0,84406.0,0.013847]
[1744611253143,0.14516,84408.0,84407.0,0.189557]
[1744611254396,0.14516,84408.0,84407.0,0.190557]
[1744611255473,0.14516,84408.0,84407.0,0.19912449]
[1744611257088,0.0951,84412.0,84409.0,0.011847]
[1744611257240,0.14516,84411.0,84409.0,0.011847]
[1744611257441,0.14516,84411.0,84410.0,0.00857564]
[1744611264590,0.14516,84411.0,84410.0,0.19812664]
[1744611269147,0.14516,84411.0,84410.0,0.00857564]
[1744611274455,0.060745,84418.0,84413.0,0.011846]
[1744611274658,0.14516,84417.0,84413.0,0.011846]
[1744611274863,0.157005,84417.0,84414.0,0.00858778]
[1744611275926,0.158005,84417.0,84414.0,0.00858778]
[1744611276124,0.14616,84417.0,84414.0,0.20997378]
[1744611276828,0.14716,84417.0,84414.0,0.20997378]
[1744611277469,0.14516,84416.0,84414.0,0.20997378]
[1744611277678,0.14716,84417.0,84416.0,0.189537]
[1744611277897,0.14716,84417.0,84416.0,0.19812046]
[1744611278458,0.002,84417.0,84416.0,0.19812046]
[1744611278669,0.14508,84418.0,84416.0,0.19812046]
[1744611279073,0.001,84417.0,84416.0,0.19812046]
[1744611279710,0.14508,84419.0,84416.0,0.20996646]
[1744611279919,0.14508,84419.0,84417.0,0.189533]
[1744611280115,0.001,84418.0,84417.0,0.189533]
[1744611280374,0.14508,84419.0,84417.0,0.189533]
[1744611280679,0.14508,84419.0,84417.0,0.19811646]
[1744611282216,0.001,84418.0,84417.0,0.19811646]
[1744611282559,0.14508,84419.0,84417.0,0.19811646]
[1744611282863,0.14608,84419.0,84417.0,0.19811646]
[1744611283362,0.001,84418.0,84417.0,0.19811646]
[1744611283661,0.14508,84419.0,84417.0,0.19811646]
[1744611284369,0.011845,84421.0,84417.0,0.20996146]
[1744611284557,0.011845,84420.0,84417.0,0.20996146]
[1744611284754,0.156885,84420.0,84417.0,0.02042846]
[1744611285117,0.14504,84420.0,84417.0,0.02042846]
[1744611285336,0.001,84419.0,84417.0,0.02042846]
[1744611286329,0.14504,84418.0,84417.0,0.02042846]
[1744611286544,0.14504,84418.0,84417.0,0.00858346]
[1744611286959,0.14504,84418.0,84410.0,0.011846]
[1744611286960,0.011847,84408.0,84404.0,0.011847]
[1744611287163,0.011847,84408.0,84404.0,0.13268854]
[1744611287637,0.011846,84411.0,84406.0,0.189559]
[1744611288366,0.011846,84411.0,84408.0,0.011847]
[1744611289023,0.011846,84412.0,84409.0,0.011847]
[1744611289438,0.011846,84411.0,84408.0,0.011847]
[1744611291846,0.011846,84410.0,84407.0,0.011847]
[1744611292879,0.011847,84407.0,84391.0,0.189593]
[1744611293088,0.011847,84407.0,84396.0,0.201429]
[1744611293089,0.189564,84404.0,84396.0,0.201429]
[1744611293236,0.189564,84404.0,84399.0,0.011848]
[1744611293450,0.189564,84404.0,84398.0,0.011848]
[1744611293964,0.189564,84404.0,84397.0,0.011848]
[1744611294173,0.189564,84404.0,84398.0,0.011848]
[1744611294513,0.189564,84404.0,84397.0,0.011848]
[1744611294842,0.189564,84404.0,84398.0,0.011848]
[1744611295059,0.189564,84404.0,84403.0,0.00313909]
[1744611295459,0.189564,84404.0,84403.0,0.00213909]
[1744611295735,0.189564,84404.0,84403.0,0.00313909]
[1744611295855,0.189564,84404.0,84403.0,0.00113909]
[1744611296061,0.189564,84404.0,84403.0,0.00313909]
[1744611299657,0.235064,84404.0,84403.0,0.00313909]
[1744611300070,0.284064,84404.0,84403.0,0.00313909]
[1744611300489,0.284064,84404.0,84403.0,0.00213909]
[1744611300864,0.284064,84404.0,84403.0,0.00313909]
[1744611301596,0.429144,84404.0,84403.0,0.00313909]
[1744611301743,0.429144,84404.0,84403.0,0.00113909]
[1744611301949,0.429144,84404.0,84403.0,0.00213909]
[1744611302268,0.429144,84404.0,84403.0,0.00013909]
[1744611302648,0.770144,84404.0,84403.0,0.00013909]
[1744611304446,0.3865,84404.0,84403.0,0.00013909]
[1744611304639,0.721144,84404.0,84403.0,0.00013909]
[1744611307051,0.770644,84404.0,84403.0,0.00013909]
[1744611318576,0.625564,84404.0,84403.0,0.00013909]
[1744611318778,0.770524,84404.0,84403.0,0.00013909]
[1744611321310,0.89136554,84404.0,84403.0,0.00013909]
[1744611323568,0.89136554,84404.0,84387.0,0.0004215]
[1744611323569,0.5296,84388.0,84387.0,0.0004215]
[1744611323806,1.30433923,84388.0,84387.0,0.0004215]
[1744611325297,1.31033923,84388.0,84387.0,0.0004215]
[1744611326239,1.32488008,84388.0,84387.0,0.0004215]
[1744611326977,1.33394627,84388.0,84387.0,0.0004215]
[1744611327104,1.45467475,84388.0,84387.0,0.0004215]
[1744611327304,1.45367475,84388.0,84387.0,0.0004215]
[1744611327955,1.46067475,84388.0,84387.0,0.0004215]
[1744611330330,1.33994627,84388.0,84387.0,0.0004215]
[1744611330634,1.18044542,84388.0,84387.0,0.0004215]
[1744611330840,0.83137923,84388.0,84387.0,0.0004215]
[1744611331041,0.76253769,84388.0,84387.0,0.0004215]
[1744611331283,0.42793769,84388.0,84387.0,0.0004215]
[1744611331461,0.57293769,84388.0,84387.0,0.0004215]
[1744611332060,0.56593769,84388.0,84387.0,0.0004215]
[1744611332262,0.56093769,84388.0,84387.0,0.0004215]
[1744611332599,0.56693769,84388.0,84387.0,0.00934577]
[1744611332822,0.56693769,84388.0,84387.0,0.0004215]
[1744611333034,0.56693769,84388.0,84387.0,0.00934577]
[1744611333374,0.56693769,84388.0,84387.0,0.00934849]
[1744611333572,0.006,84388.0,84387.0,0.19895049]
[1744611334757,0.003,84388.0,84387.0,0.19895049]
[1744611334962,0.005,84388.0,84387.0,0.19895049]
[1744611335363,0.002,84388.0,84387.0,0.19895049]
[1744611335700,0.006,84388.0,84387.0,0.19895049]
[1744611336139,0.004,84388.0,84387.0,0.19895049]
[1744611336473,0.006,84388.0,84387.0,0.19895049]
[1744611342636,0.006,84388.0,84387.0,0.36569203]
[1744611343505,0.006,84388.0,84387.0,0.72023288]
[1744611343858,0.14484,84414.0,84387.0,0.72023288]
[1744611343859,0.14484,84414.0,84411.0,0.201394]
[1744611344082,0.00013902,84412.0,84411.0,0.201394]
[1744611345319,0.00013902,84412.0,84411.0,0.20041893]
[1744611345528,0.00013902,84412.0,84411.0,0.20913904]
[1744611345739,0.00313902,84412.0,84411.0,0.20913904]
[1744611345931,0.00313902,84412.0,84411.0,0.32998058]
[1744611346315,0.00713902,84412.0,84411.0,0.32998058]
[1744611346517,0.00713902,84412.0,84411.0,0.34452143]
[1744611347278,0.00313902,84412.0,84411.0,0.34452143]
[1744611347426,0.00113902,84412.0,84411.0,0.34452143]
[1744611347828,0.00313902,84412.0,84411.0,0.34452143]
[1744611348951,0.00313902,84412.0,84411.0,0.35192267]
[1744611349722,0.00313902,84412.0,84411.0,0.34452143]
[1744611350103,0.00313902,84412.0,84411.0,0.35650679]
[1744611351669,0.00113902,84412.0,84411.0,0.35650679]
[1744611352049,0.00313902,84412.0,84411.0,0.35650679]
[1744611352549,0.00213902,84412.0,84411.0,0.35650679]
[1744611352750,0.00313902,84412.0,84411.0,0.35650679]
[1744611352954,0.00313902,84412.0,84411.0,0.00872011]
[1744611353154,0.19268502,84412.0,84408.0,0.011847]
[1744611353356,0.00313902,84412.0,84411.0,0.00857644]
[1744611353555,0.00313902,84412.0,84409.0,0.201398]
[1744611353762,0.00313902,84412.0,84411.0,0.00857644]
[1744611353987,0.011846,84411.0,84406.0,0.430547]
[1744611354163,0.011847,84409.0,84406.0,0.430547]
[1744611354360,0.011846,84411.0,84407.0,0.011847]
[1744611354592,0.011847,84404.0,84399.0,0.189575]
[1744611354789,0.01298502,84412.0,84408.0,0.011847]
[1744611355122,0.011847,84409.0,84405.0,0.011847]
[1744611355709,0.001,84411.0,84406.0,0.011847]
[1744611356008,0.001,84411.0,84409.0,0.189551]
[1744611356204,0.001,84411.0,84410.0,0.12084154]
[1744611356412,0.001,84411.0,84410.0,0.12321063]
[1744611356714,0.00113902,84412.0,84411.0,0.189548]
[1744611356851,0.00013902,84412.0,84411.0,0.31038954]
[1744611357458,0.00013902,84412.0,84411.0,0.32493039]
[1744611358196,0.00013902,84412.0,84411.0,0.74363039]
[1744611359233,0.00013902,84412.0,84411.0,0.74563039]
[1744611359804,0.00013902,84412.0,84411.0,0.74963039]
[1744611359985,0.00013902,84412.0,84411.0,0.75163039]
[1744611360419,0.00013902,84412.0,84411.0,0.76018326]
[1744611360616,0.00013902,84412.0,84411.0,0.34148326]
[1744611362479,0.00013902,84412.0,84411.0,0.32694241]
[1744611370380,0.18968502,84412.0,84411.0,0.01655287]
[1744611370693,0.23698502,84412.0,84411.0,0.008]
[1744611371016,0.24883102,84412.0,84409.0,0.011847]
[1744611371381,0.011847,84409.0,84406.0,0.011847]
[1744611371553,0.011847,84408.0,84404.0,0.011847]
[1744611373035,0.011847,84408.0,84404.0,0.013847]
[1744611373238,0.18956,84406.0,84404.0,0.002]
[1744611374255,0.011847,84405.0,84402.0,0.011848]
[1744611375512,0.011847,84405.0,84404.0,0.002]
[1744611375855,0.011847,84405.0,84404.0,0.01063169]
[1744611376379,0.011847,84405.0,84404.0,0.00863169]
[1744611376583,0.011847,84405.0,84402.0,0.014848]
[1744611376761,0.011847,84408.0,84404.0,0.02247869]
[1744611376950,0.239026,84421.0,84411.0,0.189548]
[1744611376951,0.00013902,84412.0,84411.0,0.189548]
[1744611377153,0.00013902,84412.0,84409.0,0.011847]
[1744611377372,0.00013902,84412.0,84411.0,0.00865259]
[1744611377667,0.00013902,84412.0,84409.0,0.011847]
[1744611377870,0.00013902,84412.0,84410.0,0.00864988]
[1744611379028,0.00013902,84412.0,84411.0,0.189548]
[1744611379542,0.00013902,84412.0,84411.0,0.19820059]
[1744611379883,0.00113902,84412.0,84411.0,0.19820059]
[1744611380277,0.00013902,84412.0,84411.0,0.19820059]
[1744611380676,0.00113902,84412.0,84411.0,0.19820059]
[1744611381089,0.00113902,84412.0,84411.0,0.31904213]
[1744611381875,0.00013902,84412.0,84411.0,0.31904213]
[1744611382135,0.00013902,84412.0,84411.0,0.20560208]
[1744611382336,0.00013902,84412.0,84411.0,0.20660208]
[1744611382538,0.00013902,84412.0,84411.0,0.20560208]
[1744611383054,0.00013902,84412.0,84411.0,0.20120059]
[1744611383261,0.00013902,84412.0,84411.0,0.20220059]
[1744611383879,0.00013902,84412.0,84411.0,0.32541134]
[1744611384041,0.00013902,84412.0,84411.0,0.32304213]
[1744611385266,0.00013902,84412.0,84411.0,0.33044314]
[1744611385673,0.00013902,84412.0,84411.0,0.34498399]
[1744611386231,0.00013902,84412.0,84411.0,0.33758298]
[1744611391399,0.00013902,84412.0,84411.0,0.32304213]
[1744611391801,0.00013902,84412.0,84411.0,0.01265259]
[1744611393082,0.00013902,84412.0,84411.0,0.02005441]
[1744611395449,0.00013902,84412.0,84411.0,0.14089595]
[1744611395620,0.00013902,84412.0,84411.0,0.15780613]
[1744611396190,0.00013902,84412.0,84411.0,0.1554368]
[1744611397006,0.00013902,84412.0,84411.0,0.14803498]
[1744611397374,0.00013902,84412.0,84411.0,0.13349413]
[1744611398724,1.96874741,84429.0,84427.0,0.189511]
[1744611398947,1.96874741,84429.0,84428.0,0.00860343]
[1744611399176,1.96874741,84429.0,84427.0,0.189511]
[1744611400183,1.97274741,84429.0,84427.0,0.189511]
[1744611400761,1.97074741,84429.0,84427.0,0.189511]
[1744611401391,1.96874741,84429.0,84427.0,0.189511]
[1744611402064,1.97074741,84429.0,84427.0,0.189511]
[1744611402272,1.97274741,84429.0,84427.0,0.189511]
[1744611408321,1.97274741,84429.0,84428.0,0.12084154]
[1744611408924,1.97074741,84429.0,84428.0,0.12084154]
[1744611409266,1.97074741,84429.0,84428.0,0.12824163]
[1744611409466,1.96974741,84429.0,84428.0,0.12824163]
[1744611409598,1.97074741,84429.0,84428.0,0.12824163]
[1744611410579,1.96974741,84429.0,84428.0,0.12824163]
[1744611410959,1.97074741,84429.0,84428.0,0.12824163]
[1744611415010,1.97074741,84429.0,84428.0,0.58025116]
[1744611415208,1.97074741,84429.0,84428.0,0.58460064]
[1744611415743,1.97074741,84429.0,84428.0,0.5370811]
[1744611415967,1.96974741,84429.0,84428.0,0.5370811]
[1744611416382,1.96974741,84429.0,84428.0,0.5420811]
[1744611416605,1.96874741,84429.0,84428.0,0.5370811]
[1744611416952,1.96874741,84429.0,84428.0,0.5470811]
[1744611417348,1.96874741,84429.0,84428.0,0.14364025]
[1744611417573,1.96874741,84429.0,84428.0,0.13524163]
[1744611417889,1.96874741,84429.0,84428.0,0.13824163]
[1744611418717,1.96874741,84429.0,84428.0,0.14578248]
[1744611419218,1.96874741,84429.0,84428.0,0.14978248]
[1744611419557,1.96874741,84429.0,84428.0,0.14678248]
[1744611420138,1.96874741,84429.0,84428.0,0.14878248]
[1744611420362,1.96874741,84429.0,84428.0,0.14278248]
[1744611420750,1.96874741,84429.0,84428.0,0.14878248]
[1744611427989,1.96874741,84429.0,84428.0,0.13424163]
[1744611428131,1.96874741,84429.0,84428.0,0.12684154]
[1744611437341,1.96874741,84429.0,84428.0,0.13354334]
[1744611437543,1.96874741,84429.0,84428.0,0.14808419]
[1744611437753,1.96874741,84429.0,84428.0,0.90678419]
[1744611438527,1.96874741,84429.0,84428.0,0.91418264]
[1744611438727,1.96874741,84429.0,84428.0,0.91218264]
[1744611439072,1.96874741,84429.0,84428.0,0.90818264]
[1744611439278,1.96874741,84429.0,84428.0,0.91618264]
[1744611439478,1.96874741,84429.0,84428.0,1.06070264]
[1744611439714,1.96874741,84429.0,84428.0,1.06470264]
[1744611440328,1.96874741,84429.0,84428.0,1.11350264]
[1744611441215,1.54257341,84429.0,84428.0,1.11350264]
[1744611441503,1.10733741,84429.0,84428.0,1.11350264]
[1744611441882,3.3e-07,84429.0,84428.0,1.11450264]
[1744611442088,0.002,84439.0,84438.0,0.63712885]
[1744611442245,0.00213907,84439.0,84438.0,1.18406884]
[1744611442451,0.00213907,84439.0,84438.0,1.18958227]
[1744611442650,0.00213907,84439.0,84438.0,1.09648227]
[1744611443214,0.00213907,84439.0,84438.0,0.32324142]
[1744611443455,0.00213907,84439.0,84438.0,0.31984297]
[1744611443618,0.00213907,84439.0,84438.0,0.31584297]
[1744611444045,0.00213907,84439.0,84438.0,0.33738382]
[1744611444260,0.00213907,84439.0,84438.0,0.34478243]
[1744611444649,0.00213907,84439.0,84438.0,0.34878243]
[1744611445025,0.00213907,84439.0,84438.0,0.34478243]
[1744611445350,0.00213907,84439.0,84438.0,0.33778243]
[1744611445680,0.00213907,84439.0,84438.0,0.34278243]
[1744611445850,0.00213907,84439.0,84438.0,0.13875358]
[1744611446030,0.09543907,84439.0,84438.0,0.13875358]
[1744611446395,0.00213907,84439.0,84438.0,0.14589582]
[1744611446644,0.00213907,84439.0,84438.0,0.14826416]
[1744611447753,0.00013907,84439.0,84438.0,0.14826416]